bitfinex/quotes_ETHUSD_20250813
["timestamp","ask_amount","ask_price","bid_price","bid_amount"]
[1755048628139,5.03345541,4577.8,4577.7,3.418]
[1755048628343,2.73445541,4577.8,4577.7,3.418]
[1755048628544,3.33593923,4577.8,4577.7,3.418]
[1755048629069,5.71903923,4577.8,4577.7,3.418]
[1755048629375,6.06053923,4577.8,4577.7,3.418]
[1755048629834,6.06053923,4577.8,4577.7,0.001]
[1755048630040,1.15148382,4577.8,4577.7,0.001]
[1755048630237,0.6596,4577.8,4577.7,3.417]
[1755048630476,0.1096,4577.8,4577.7,3.8765]
[1755048630767,0.1096,4577.8,4577.7,3.417]
[1755048630974,0.1096,4577.8,4577.7,8.654]
[1755048631948,0.1096,4577.8,4577.7,9.1135]
[1755048633580,0.1096,4577.8,4577.7,11.3709]
[1755048633947,0.1096,4577.8,4577.7,7.9549]
[1755048634159,0.1096,4577.8,4577.7,11.3719]
[1755048634544,0.6596,4577.8,4577.7,8.654]
[1755048635254,5.47766034,4577.8,4577.7,8.654]
[1755048637671,0.83440493,4577.8,4577.7,8.654]
[1755048637857,0.6596,4577.8,4577.7,9.1135]
[1755048638971,0.1096,4577.8,4577.7,11.3709]
[1755048641364,0.1096,4577.8,4577.7,28.731414]
[1755048641800,0.1096,4577.8,4577.7,22.598514]
[1755048642002,0.1096,4577.8,4577.7,8.654]
[1755048642169,0.6596,4577.8,4577.7,0.001]
[1755048642364,5.53475541,4577.8,4577.7,3.417]
[1755048642601,5.53475541,4577.8,4576.7,5.237]
[1755048642602,2.18479259,4577.1,4575.9,5.237]
[1755048642777,2.84467593,4576.5,4575.9,5.237]
[1755048643175,0.55,4576.0,4575.5,5.237]
[1755048643472,4.53430797,4576.5,4575.5,5.237]
[1755048643678,0.55,4576.4,4575.9,3.416]
[1755048643887,0.55,4576.9,4576.0,2.7169]
[1755048644201,0.55,4576.9,4576.1,0.4595]
[1755048644371,0.55,4577.4,4576.2,3.416]
[1755048644570,0.55,4577.2,4576.2,3.416]
[1755048647834,2.18478949,4577.1,4576.2,3.416]
[1755048648033,0.55,4577.2,4576.2,3.416]
[1755048648400,0.55,4577.2,4576.3,0.4595]
[1755048648606,0.55,4577.2,4576.4,2.2574]
[1755048648801,0.28992,4577.3,4576.5,0.4595]
[1755048649001,2.18435998,4578.0,4576.6,5.6734]
[1755048649223,2.3492,4578.7,4576.7,0.4595]
[1755048649410,0.55,4578.4,4576.7,0.4595]
[1755048649617,0.55,4577.7,4576.8,3.416]
[1755048650212,2.73441399,4577.9,4576.9,3.416]
[1755048650537,2.4579437,4577.8,4577.0,0.4595]
[1755048650843,0.55,4577.7,4576.7,0.4595]
[1755048650997,2.18461861,4577.5,4577.1,3.416]
[1755048651204,3.00812822,4577.4,4577.2,3.416]
[1755048651624,0.82346186,4577.4,4577.2,3.416]
[1755048652209,0.55,4577.4,4577.2,3.416]
[1755048652744,0.55,4577.3,4577.2,3.416]
[1755048653242,0.6596,4577.3,4577.2,3.416]
[1755048658657,0.6596,4577.3,4577.2,6.1329]
[1755048659538,0.1096,4577.3,4577.2,6.1329]
[1755048660158,0.1096,4577.3,4577.2,11.3709]
[1755048662124,0.1096,4577.3,4577.2,9.1135]
[1755048663289,0.6596,4577.3,4577.2,8.654]
[1755048664683,0.6596,4577.3,4577.2,8.652]
[1755048664989,0.94401985,4577.3,4577.2,8.652]
[1755048665154,0.6596,4577.3,4577.2,8.652]
[1755048665494,0.002,4578.2,4577.2,11.3813]
[1755048665658,0.1096,4577.8,4577.3,2.7293]
[1755048665850,0.002,4578.2,4577.4,5.228541]
[1755048666055,0.002,4578.2,4577.5,11.502487]
[1755048666255,0.002,4578.2,4577.6,10.717212]
[1755048666462,0.002,4578.2,4577.6,13.446512]
[1755048666662,0.002,4578.2,4577.7,22.727295]
[1755048666864,0.002,4578.2,4577.8,15.9481]
[1755048667168,0.002,4578.2,4577.9,15.028764]
[1755048667367,0.002,4578.2,4577.9,2.7293]
[1755048667599,0.1096,4578.0,4577.4,0.4307]
[1755048667802,0.002,4578.2,4577.5,3.414]
[1755048668001,0.1096,4577.6,4577.5,3.414]
[1755048668592,0.1096,4577.6,4577.5,3.8447]
[1755048670471,0.1096,4577.6,4577.5,3.414]
[1755048671678,0.6596,4577.6,4577.2,5.238]
[1755048671880,0.55,4577.2,4576.6,0.4307]
[1755048672110,0.55,4577.8,4576.7,8.651]
[1755048672318,0.002,4577.6,4576.8,3.722573]
[1755048672475,0.002,4577.6,4576.8,7.4985371]
[1755048672476,0.1096,4576.9,4576.8,7.4985371]
[1755048672674,0.1096,4576.9,4576.8,21.7151601]
[1755048672973,0.002,4577.6,4576.8,24.4444601]
[1755048673168,0.1096,4577.1,4576.9,30.763179]
[1755048673380,0.1096,4577.1,4577.0,31.5098771]
[1755048673684,0.1096,4577.1,4577.0,22.9560831]
[1755048673884,0.1096,4577.1,4577.0,8.50139]
[1755048674090,0.1096,4577.1,4577.0,3.414]
[1755048674382,0.55,4577.0,4576.7,5.237]
[1755048674587,0.6596,4576.8,4576.7,5.237]
[1755048674815,0.6596,4576.8,4576.7,8.652]
[1755048675311,0.6596,4576.8,4576.4,5.237]
[1755048675613,2.73479889,4577.1,4576.4,5.237]
[1755048675810,0.1096,4576.5,4576.4,5.237]
[1755048676109,0.6596,4576.5,4576.4,5.237]
[1755048676289,0.6596,4576.5,4576.4,8.653]
[1755048677292,0.94405573,4576.5,4576.4,8.653]
[1755048677495,0.6596,4576.5,4576.4,8.653]
[1755048678605,0.6596,4576.5,4576.0,0.001]
[1755048678776,2.73513312,4576.4,4576.2,5.238]
[1755048678978,2.73536244,4575.9,4575.7,5.239]
[1755048679190,0.55,4575.8,4575.5,5.239]
[1755048679390,0.6596,4575.6,4575.5,5.239]
[1755048679777,0.6596,4575.6,4575.5,5.6697]
[1755048680178,0.6596,4575.6,4575.5,5.239]
[1755048680499,0.6596,4575.6,4575.5,8.654]
[1755048681202,0.1096,4575.8,4575.6,11.494441]
[1755048681439,0.1096,4575.8,4575.7,6.78028044]
[1755048681736,0.002,4578.1,4575.7,36.78028044]
[1755048681910,0.1096,4576.5,4575.8,20.942296]
[1755048682116,0.1096,4576.5,4575.9,27.9311361]
[1755048682324,0.1096,4576.5,4576.0,33.428]
[1755048682532,0.1096,4576.5,4576.1,29.925836]
[1755048682711,0.1096,4576.5,4576.2,3.429]
[1755048682910,0.1096,4576.5,4576.2,16.534669]
[1755048683106,0.1096,4576.5,4576.3,8.668492]
[1755048683438,0.1096,4576.5,4576.4,33.428]
[1755048683740,0.1096,4576.5,4576.4,16.062769]
[1755048684039,0.1096,4576.5,4576.4,11.731547]
[1755048684342,0.1096,4576.5,4576.4,12.0935111]
[1755048684528,0.1096,4576.5,4576.4,6.5192641]
[1755048684720,0.1096,4576.5,4576.4,9.1303]
[1755048685518,0.1096,4576.5,4576.4,8.981924]
[1755048685838,0.1096,4576.5,4576.4,9.877924]
[1755048686143,0.1096,4576.5,4576.4,8.981924]
[1755048686441,0.1096,4576.5,4575.5,5.239]
[1755048686754,2.2655,4577.3,4575.6,5.655]
[1755048686755,0.55,4576.8,4575.6,5.655]
[1755048686949,0.55,4576.8,4575.7,4.353618]
[1755048687450,0.1096,4575.8,4575.7,4.353618]
[1755048687734,0.1096,4575.8,4575.7,3.425]
[1755048694432,0.1096,4575.8,4575.7,6.1619]
[1755048694619,0.1096,4575.8,4575.7,3.419]
[1755048695242,0.6596,4575.8,4575.7,3.419]
[1755048695426,0.6596,4575.8,4575.5,5.239]
[1755048695427,0.55,4575.7,4575.5,5.239]
[1755048695632,0.9942,4575.6,4575.5,5.239]
[1755048695826,0.55,4575.4,4575.3,0.001]
[1755048696028,0.1096,4575.4,4575.3,0.001]
[1755048696241,3.5181,4575.4,4575.3,0.001]
[1755048696457,6.27406746,4575.4,4575.3,0.001]
[1755048696615,6.27406746,4575.4,4575.3,3.42]
[1755048696822,0.55,4575.3,4575.0,5.24]
[1755048697021,0.6596,4575.1,4575.0,5.24]
[1755048697220,0.6596,4575.1,4574.6,5.24]
[1755048697433,3.6930262,4575.0,4574.6,5.24]
[1755048697636,1.2787262,4575.0,4574.6,5.24]
[1755048697859,0.55,4575.0,4574.6,5.24]
[1755048698023,0.55,4575.0,4574.9,3.419]
[1755048699759,0.1096,4575.1,4574.9,3.8474]
[1755048699963,0.1096,4575.1,4574.9,5.7275]
[1755048700285,0.30739,4575.8,4575.0,2.7369]
[1755048700490,0.4442,4576.3,4575.1,3.416]
[1755048700862,0.55,4576.2,4575.1,3.416]
[1755048701380,0.1096,4575.2,4575.1,3.416]
[1755048701583,0.1096,4575.2,4575.1,6.1529]
[1755048704995,0.1096,4575.2,4575.1,3.416]
[1755048706055,0.1096,4575.2,4575.1,6.1529]
[1755048706657,0.1096,4575.2,4575.1,3.416]
[1755048708102,0.55,4575.1,4574.9,0.001]
[1755048708297,0.90181,4575.0,4574.9,0.001]
[1755048708502,0.90181,4575.0,4574.9,3.417]
[1755048709310,0.55,4575.0,4574.9,3.417]
[1755048711553,0.1096,4575.2,4574.9,3.417]
[1755048711712,0.1096,4575.2,4574.9,3.8454]
[1755048711908,0.1096,4575.2,4575.0,0.4284]
[1755048712108,0.1096,4575.2,4575.1,3.416]
[1755048712461,0.1096,4575.2,4575.1,6.1529]
[1755048712812,0.1096,4575.2,4575.1,27.153026]
[1755048713437,0.1096,4575.2,4575.1,25.647666]
[1755048713751,0.1096,4575.2,4575.1,22.776233]
[1755048715025,0.1096,4575.2,4575.1,36.5148641]
[1755048715230,0.1096,4575.4,4575.1,36.5148641]
[1755048715457,0.1096,4575.4,4575.2,33.0988641]
[1755048715686,0.1096,4575.7,4575.3,33.415]
[1755048715981,0.002,4576.9,4575.4,33.0988641]
[1755048716181,0.1096,4576.0,4575.5,33.415]
[1755048716393,0.1096,4576.0,4575.5,3.415]
[1755048716686,0.1096,4576.0,4575.6,32.7369]
[1755048716852,0.1096,4576.0,4575.7,33.415]
[1755048717173,0.1096,4576.0,4575.8,8.556674]
[1755048717477,0.1096,4576.0,4575.9,3.415]
[1755048717648,0.1096,4576.0,4575.9,6.483532]
[1755048717972,0.1096,4576.0,4575.9,9.220432]
[1755048718380,0.1096,4576.0,4575.9,9.209866]
[1755048719363,0.1096,4576.0,4575.9,22.344298]
[1755048719557,0.1096,4576.0,4575.9,21.219442]
[1755048719860,0.1096,4576.0,4575.9,19.719442]
[1755048720245,0.1096,4576.0,4575.9,6.2615]
[1755048720747,0.1096,4576.0,4575.9,6.42374947]
[1755048721553,0.1096,4576.0,4575.9,36.78571357]
[1755048721748,0.1096,4576.0,4575.9,35.53100257]
[1755048721981,0.1096,4576.0,4575.9,25.25009747]
[1755048722361,0.1096,4576.0,4575.9,27.21159847]
[1755048722578,0.1096,4576.0,4575.9,22.74599147]
[1755048722912,0.1096,4576.0,4575.9,16.57779547]
[1755048723113,0.1096,4576.0,4575.9,16.08796147]
[1755048723410,0.1096,4576.0,4575.9,24.66019147]
[1755048723610,0.1096,4576.0,4575.9,27.34125947]
[1755048723806,0.1096,4576.0,4575.9,23.50984347]
[1755048724012,0.0877,4576.0,4575.9,22.45858347]
[1755048724377,0.0877,4576.0,4575.9,29.15102047]
[1755048724579,0.0877,4576.0,4575.9,36.42374947]
[1755048725918,0.002,4576.9,4575.9,36.42374947]
[1755048726150,0.1096,4576.4,4576.0,30.465]
[1755048726427,0.1096,4576.4,4576.1,36.3633]
[1755048726729,0.1096,4576.6,4576.2,30.0]
[1755048726891,0.1096,4576.6,4576.3,3.414]
[1755048727079,0.1096,4576.6,4576.4,30.0]
[1755048727281,0.1116,4576.9,4576.5,3.414]
[1755048727582,0.002,4576.9,4576.6,24.031117]
[1755048727786,0.002,4576.9,4576.7,8.653]
[1755048728034,0.002,4576.9,4576.7,12.301]
[1755048728195,0.002,4576.9,4576.8,2.189532]
[1755048728715,0.002,4576.9,4576.8,5.108857]
[1755048729590,0.002,4576.9,4576.8,14.934806]
[1755048730005,0.002,4576.9,4576.8,6.041056]
[1755048730316,0.002,4576.9,4576.8,5.185977]
[1755048730518,0.002,4576.9,4576.7,8.7626]
[1755048730740,2.4065,4576.8,4576.7,8.7626]
[1755048731014,3.10021,4576.8,4576.7,8.7626]
[1755048732220,0.55,4576.7,4576.0,5.238]
[1755048732517,0.55,4576.5,4576.1,3.414]
[1755048732718,2.8482,4576.4,4576.1,3.414]
[1755048732891,0.1096,4576.2,4576.1,3.414]
[1755048733512,0.1096,4576.2,4576.1,14.785396]
[1755048733681,0.1096,4576.2,4576.1,15.5898601]
[1755048733886,0.1096,4576.8,4576.1,18.34817644]
[1755048734105,0.002,4577.4,4576.2,33.2887641]
[1755048734106,0.1116,4577.0,4576.2,33.2887641]
[1755048734442,0.1116,4577.0,4576.3,33.413]
[1755048734613,0.1116,4577.0,4576.4,30.0]
[1755048734820,0.1116,4577.0,4576.5,3.413]
[1755048735129,0.1116,4577.0,4576.5,8.532405]
[1755048735305,0.1116,4577.0,4576.6,21.3978]
[1755048735507,0.1116,4577.0,4576.7,3.413]
[1755048735713,0.1116,4577.0,4576.8,18.2358]
[1755048736536,0.1116,4577.0,4576.8,21.3529]
[1755048737107,0.1116,4577.0,4576.8,24.6416641]
[1755048737329,0.1116,4577.0,4576.8,19.4999471]
[1755048737536,0.1116,4577.0,4576.8,17.4555671]
[1755048737745,0.1116,4577.0,4576.8,13.766803]
[1755048738429,0.1116,4577.0,4576.8,14.231803]
[1755048738629,0.1116,4577.0,4576.8,25.404156]
[1755048738941,0.1116,4577.0,4576.8,24.681989]
[1755048739110,0.1116,4577.0,4576.8,16.852516]
[1755048739506,0.1116,4577.0,4576.8,18.779763]
[1755048740445,0.1116,4577.0,4576.8,15.305545]
[1755048741333,0.1116,4577.0,4576.8,17.789845]
[1755048741624,0.1116,4577.0,4576.8,17.672619]
[1755048742040,0.1116,4577.0,4576.8,9.2553]
[1755048742215,0.1116,4577.0,4576.8,7.580452]
[1755048742410,0.1116,4577.0,4576.8,10.064752]
[1755048742607,0.1116,4577.0,4576.7,3.5246]
[1755048743611,0.1116,4577.0,4576.8,10.628678]
[1755048743850,0.1116,4577.0,4576.8,33.2887641]
[1755048746743,0.1116,4577.0,4576.8,25.5480581]
[1755048746920,0.1116,4577.0,4576.8,21.497723]
[1755048747923,0.1116,4577.0,4576.8,9.236172]
[1755048748833,0.1116,4577.0,4576.8,10.185127]
[1755048749340,0.1116,4577.0,4576.8,2.385258]
[1755048749851,0.1116,4577.0,4576.7,3.413]
[1755048750147,0.1116,4577.0,4576.8,7.354868]
[1755048750729,0.1116,4577.0,4576.8,3.347305]
[1755048750929,0.1116,4577.0,4576.8,6.639818]
[1755048751128,0.1116,4577.0,4576.8,6.349818]
[1755048751649,2.8656,4576.9,4576.7,3.413]
[1755048751837,0.29772,4576.8,4576.7,3.413]
[1755048752037,0.73612,4576.8,4576.7,3.413]
[1755048752235,3.71132,4576.8,4576.7,3.413]
[1755048752877,0.55,4576.7,4576.0,5.238]
[1755048753061,0.55,4576.5,4576.0,5.238]
[1755048753255,0.1096,4576.1,4576.0,5.238]
[1755048753554,3.5232,4576.1,4576.0,8.65]
[1755048753915,5.70846693,4576.1,4576.0,8.65]
[1755048755922,5.70846693,4576.1,4575.4,5.238]
[1755048755923,2.18555349,4575.5,4575.4,5.238]
[1755048756133,3.68715535,4575.5,4575.4,8.649]
[1755048756352,3.79675535,4575.5,4575.4,8.649]
[1755048758144,5.98230884,4575.5,4575.4,8.649]
[1755048758664,5.98230884,4575.5,4575.4,5.238]
[1755048758863,5.98230884,4575.5,4575.4,8.65]
[1755048759230,2.1856968,4575.2,4575.1,0.001]
[1755048759457,3.66210423,4575.2,4575.1,0.001]
[1755048759629,6.52570423,4575.2,4575.1,0.001]
[1755048760144,4.34000743,4575.2,4575.1,0.001]
[1755048760383,0.6596,4575.2,4575.1,3.413]
[1755048760529,3.5232,4575.2,4575.1,3.413]
[1755048760930,5.7088968,4575.2,4575.1,3.413]
[1755048761330,0.1096,4575.2,4575.1,3.413]
[1755048761530,0.548,4575.2,4575.1,0.001]
[1755048761769,2.9732,4575.2,4575.1,3.413]
[1755048761969,5.8966168,4575.2,4575.1,3.413]
[1755048762174,6.0062168,4575.2,4575.1,3.413]
[1755048762732,3.82052,4575.2,4575.1,3.413]
[1755048762932,6.0062168,4575.2,4575.1,3.413]
[1755048763231,6.0062168,4575.2,4575.0,0.001]
[1755048763232,2.73574457,4575.1,4575.0,0.001]
[1755048763432,4.23279046,4575.1,4575.0,0.001]
[1755048763628,3.4136,4575.1,4575.0,0.001]
[1755048764464,3.4136,4575.1,4575.0,3.413]
[1755048765473,0.40692,4575.2,4575.0,3.413]
[1755048765778,0.55,4575.1,4575.0,3.413]
[1755048771645,5.59934457,4575.1,4575.0,0.001]
[1755048771986,0.55,4575.0,4574.6,0.001]
[1755048772166,0.1096,4574.7,4574.6,0.001]
[1755048772355,0.6596,4574.7,4574.6,0.001]
[1755048772558,6.06145568,4574.7,4574.6,0.001]
[1755048773107,6.06145568,4574.7,4574.6,3.413]
[1755048775612,2.73607904,4574.4,4573.6,5.241]
[1755048775938,0.55,4573.5,4572.8,5.241]
[1755048776134,0.9884,4573.5,4572.8,5.241]
[1755048776340,0.6596,4572.9,4572.8,5.241]
[1755048776689,0.6596,4572.9,4572.8,5.6902]
[1755048776888,0.6596,4572.9,4572.8,5.241]
[1755048777136,0.6596,4572.9,4572.8,8.653]
[1755048780024,0.6596,4572.9,4572.8,9.1]
[1755048780921,0.6596,4572.9,4572.8,8.653]
[1755048781426,0.1096,4572.9,4572.8,11.5658]
[1755048782427,0.1096,4572.9,4572.8,11.9052641]
[1755048782632,0.1096,4572.9,4572.8,11.5658]
[1755048782788,0.1096,4572.9,4572.8,14.6188]
[1755048783721,0.1096,4572.9,4572.8,11.5658]
[1755048783944,0.1096,4572.9,4572.8,11.9052641]
[1755048784130,0.1096,4572.9,4572.8,12.18028044]
[1755048784336,0.1096,4572.9,4572.8,11.9062641]
[1755048784530,0.1096,4572.9,4572.8,22.4471591]
[1755048784919,0.1096,4572.9,4572.8,11.9062641]
[1755048785323,0.1096,4572.9,4572.8,34.0984941]
[1755048785559,0.1096,4572.9,4572.8,40.5424051]
[1755048785754,0.1096,4572.9,4572.8,38.1672821]
[1755048785955,0.1096,4572.9,4572.8,38.1235911]
[1755048786185,0.1096,4572.9,4572.8,33.9744831]
[1755048786973,0.1096,4573.2,4572.9,30.0]
[1755048787131,0.1096,4573.2,4573.0,3.7504641]
[1755048787328,0.002,4575.1,4573.3,2.18660417]
[1755048787648,0.002,4575.1,4573.4,33.7504641]
[1755048787842,0.1096,4573.9,4573.7,2.18640911]
[1755048788048,0.1096,4573.9,4573.8,38.84962992]
[1755048788229,0.1096,4574.5,4574.4,2.18607631]
[1755048788428,0.002,4575.1,4574.5,30.0]
[1755048788681,0.002,4575.1,4574.9,2.18579526]
[1755048788979,0.002,4575.1,4575.0,38.653]
[1755048789132,0.002,4575.1,4575.0,41.5658]
[1755048789493,0.002,4575.1,4575.0,44.36220063]
[1755048790145,0.002,4575.1,4575.0,16.78414219]
[1755048790690,0.002,4575.1,4575.0,14.85194619]
[1755048791718,0.002,4575.1,4575.0,34.81405919]
[1755048791862,0.002,4575.1,4575.0,35.75185819]
[1755048792328,0.002,4575.1,4575.0,13.84472119]
[1755048792619,0.002,4575.1,4575.0,14.25260063]
[1755048792894,0.002,4575.1,4575.0,14.63621697]
[1755048793096,0.002,4575.1,4575.0,44.63621697]
[1755048793303,0.002,4575.1,4575.0,42.17640829]
[1755048793660,0.002,4575.1,4575.0,37.20937429]
[1755048793966,0.002,4575.1,4575.0,39.39516663]
[1755048794822,0.002,4575.1,4575.0,44.63621697]
[1755048796401,0.002,4575.1,4575.0,44.29675287]
[1755048797307,0.002,4575.1,4575.0,44.63621697]
[1755048798117,0.002,4575.1,4575.0,44.36220063]
[1755048798681,0.002,4575.1,4575.0,14.36220063]
[1755048799004,0.002,4575.1,4575.0,14.63621697]
[1755048799191,0.002,4575.1,4575.0,44.63621697]
[1755048799580,0.002,4575.1,4575.0,44.72356097]
[1755048800985,0.002,4575.1,4575.0,44.44654463]
[1755048801793,0.002,4575.1,4575.0,14.44654463]
[1755048802221,0.002,4575.1,4575.0,44.44654463]
[1755048802835,0.002,4575.1,4575.0,14.44654463]
[1755048803197,0.002,4575.1,4575.0,44.44654463]
[1755048804335,0.002,4575.1,4575.0,44.72056097]
[1755048804906,0.002,4575.1,4575.0,14.38109687]
[1755048805319,0.002,4575.1,4575.0,44.38109687]
[1755048805755,1e-08,4575.1,4575.0,44.54748053]
[1755048805978,0.002,4575.6,4575.5,2.18555349]
[1755048806133,0.002,4575.6,4575.5,35.59255349]
[1755048806467,0.002,4575.6,4575.5,39.17271759]
[1755048807145,0.002,4575.6,4575.5,24.694269]
[1755048807471,0.002,4575.6,4575.5,30.13208659]
[1755048808061,0.002,4575.6,4575.5,38.93214559]
[1755048808377,0.002,4575.6,4575.5,39.20616192]
[1755048808878,0.002,4575.6,4575.5,36.01934559]
[1755048809178,0.002,4575.6,4575.5,33.494328]
[1755048809731,0.002,4575.6,4575.5,33.407]
[1755048811481,2.7922,4575.6,4575.5,13.56]
[1755048811679,3.07142,4575.6,4575.5,3.406]
[1755048812585,3.07142,4575.6,4575.5,10.91472]
[1755048812747,3.07142,4575.6,4575.5,7.810739]
[1755048814076,0.002,4575.6,4575.5,8.1502031]
[1755048814402,0.002,4575.6,4575.5,3.7454641]
[1755048815088,0.002,4575.6,4575.5,33.7454641]
[1755048815770,0.002,4575.6,4575.5,39.02173392]
[1755048816753,0.002,4575.6,4575.5,39.10907292]
[1755048817041,0.002,4575.6,4575.5,38.83505659]
[1755048817242,0.002,4575.6,4575.5,32.72195659]
[1755048817442,0.002,4575.6,4575.5,36.12795659]
[1755048818235,0.002,4575.6,4575.5,6.12795659]
[1755048818700,0.002,4575.6,4575.5,33.9424031]
[1755048819191,0.002,4575.6,4575.5,36.12795659]
[1755048819516,0.002,4575.6,4575.5,22.028222]
[1755048820282,0.002,4575.6,4575.5,21.918622]
[1755048820500,0.002,4575.6,4575.5,35.61573392]
[1755048820647,0.002,4575.6,4575.5,39.02073392]
[1755048821372,0.002,4575.6,4575.5,9.67575792]
[1755048821743,0.002,4575.6,4575.5,39.67575792]
[1755048824971,0.002,4575.6,4575.5,39.89405792]
[1755048825164,0.002,4575.6,4575.5,39.67575792]
[1755048826180,1e-08,4575.6,4575.5,40.44405792]
[1755048827366,1e-08,4575.6,4575.5,38.09465792]
[1755048828488,1e-08,4575.6,4575.5,8.09465792]
[1755048828691,1e-08,4575.6,4575.5,9.40465792]
[1755048828867,1e-08,4575.6,4575.5,39.40465792]
[1755048829478,1e-08,4575.6,4575.5,9.40465792]
[1755048829867,1e-08,4575.6,4575.5,39.40465792]
[1755048830462,1e-08,4575.6,4575.5,39.51425792]
[1755048832585,1e-08,4575.6,4575.5,9.51425792]
[1755048832977,1e-08,4575.6,4575.5,39.51425792]
[1755048834411,1e-08,4576.1,4576.0,2.95361468]
[1755048834610,1e-08,4576.1,4576.0,14.60809511]
[1755048834792,0.002,4576.5,4576.4,2.95342367]
[1755048834793,1e-08,4576.5,4576.4,2.95342367]
[1755048834973,1e-08,4576.6,4576.5,2.95337593]
[1755048835173,1e-08,4576.7,4576.6,2.95332818]
[1755048835398,1e-08,4576.7,4576.6,45.12409228]
[1755048837453,1e-08,4576.7,4576.6,41.25279228]
[1755048837601,1e-08,4576.7,4576.6,40.36332818]
[1755048837950,1e-08,4576.7,4576.6,43.76632818]
[1755048838298,1e-08,4576.7,4576.6,43.54802818]
[1755048838736,1e-08,4576.7,4576.6,43.76632818]
[1755048838932,1e-08,4576.7,4576.6,44.10579228]
[1755048839238,1e-08,4576.7,4576.6,43.88749228]
[1755048840039,1e-08,4576.7,4576.6,44.10579228]
[1755048840817,1e-08,4576.7,4576.6,43.88749228]
[1755048841435,1e-08,4576.7,4576.6,43.54802818]
[1755048841603,1e-08,4576.7,4576.6,43.76632818]
[1755048841805,1e-08,4576.7,4576.6,13.76632818]
[1755048842115,1e-08,4576.7,4576.6,45.14264451]
[1755048842317,1e-08,4576.7,4576.6,45.26380861]
[1755048842521,1e-08,4577.4,4577.3,0.7683]
[1755048842724,0.002,4577.7,4577.5,0.2183]
[1755048842920,1e-08,4577.7,4577.6,36.41833128]
[1755048843128,1e-08,4577.9,4577.8,2.95275541]
[1755048843450,0.002,4578.3,4578.1,2.18431226]
[1755048843751,0.002,4578.3,4578.1,36.03537636]
[1755048843931,0.002,4578.3,4578.1,36.11760522]
[1755048844512,0.002,4578.3,4578.1,35.77814112]
[1755048844854,0.002,4578.3,4578.1,36.11760522]
[1755048846357,0.002,4578.3,4578.1,36.77860522]
[1755048846555,0.002,4578.3,4578.1,36.33590522]
[1755048846763,0.002,4578.3,4578.1,36.49591574]
[1755048848166,0.002,4578.3,4578.1,20.43705638]
[1755048848478,0.4541,4578.2,4578.1,23.83805638]
[1755048848625,0.4541,4578.2,4578.1,26.02236864]
[1755048848938,0.4541,4578.2,4578.1,29.07305638]
[1755048849134,0.4541,4578.2,4578.1,41.17215164]
[1755048850070,0.002,4578.2,4578.1,11.78563207]
[1755048850561,0.002,4578.2,4578.1,41.78563207]
[1755048850726,0.002,4578.2,4578.1,42.00393207]
[1755048850957,0.002,4578.2,4578.1,41.51161574]
[1755048851387,0.002,4578.2,4578.1,38.11061574]
[1755048851702,0.4541,4578.2,4578.1,37.77115164]
[1755048851869,0.4541,4578.2,4578.1,35.58683938]
[1755048852067,0.4541,4578.2,4578.1,38.98783938]
[1755048852273,0.4541,4578.2,4578.1,7.66048438]
[1755048852600,0.4541,4578.2,4578.1,11.06148438]
[1755048853156,0.4541,4578.2,4578.1,14.31131138]
[1755048853669,0.4541,4578.2,4578.1,13.33308252]
[1755048854182,0.4541,4578.2,4578.1,12.43998252]
[1755048854404,0.4541,4578.2,4578.1,8.636]
[1755048854561,0.4541,4578.2,4578.1,5.235]
[1755048854869,0.4541,4578.2,4578.1,8.636]
[1755048855074,0.4541,4578.2,4578.1,5.235]
[1755048855457,0.4541,4578.2,4578.1,8.636]
[1755048857073,0.4541,4578.2,4577.8,0.15974268]
[1755048857269,0.4541,4578.2,4578.1,5.235]
[1755048857468,0.4541,4578.2,4578.1,8.636]
[1755048857793,0.5637,4578.2,4578.1,8.636]
[1755048859715,0.5637,4578.2,4578.1,5.235]
[1755048860202,0.5637,4578.2,4578.1,8.636]
[1755048863446,0.5637,4578.2,4578.1,15.154835]
[1755048864239,0.1116,4578.2,4578.1,15.154835]
[1755048864547,0.1116,4578.2,4578.1,38.636]
[1755048864747,0.1116,4578.2,4578.1,33.115988]
[1755048865509,0.1116,4578.2,4578.1,38.33600826]
[1755048865707,0.1116,4578.2,4578.1,39.11817236]
[1755048866178,0.002,4578.2,4578.1,39.11817236]
[1755048866336,0.002,4578.2,4578.1,39.22777236]
[1755048866534,0.002,4578.2,4578.1,41.71207636]
[1755048867136,0.002,4578.2,4578.1,31.78665236]
[1755048867456,0.002,4578.2,4578.1,10.92891226]
[1755048867856,0.002,4578.2,4578.1,41.37161226]
[1755048868065,0.002,4578.2,4578.1,40.92891226]
[1755048868258,0.002,4578.2,4578.1,41.37161226]
[1755048869350,0.002,4578.2,4578.1,41.71107636]
[1755048869547,0.002,4578.2,4578.1,42.20339269]
[1755048869752,1e-08,4578.2,4578.1,41.58991226]
[1755048869962,1e-08,4578.3,4578.2,3.01604497]
[1755048870270,1e-08,4578.3,4578.2,33.47214497]
[1755048871155,1e-08,4578.3,4578.2,33.25384497]
[1755048873561,1e-08,4578.3,4578.2,33.34112397]